bitfinex/quotes_SOLUSD_20220212
["timestamp","ask_amount","ask_price","bid_price","bid_amount"]
[1644653256863,0.57496272,94.77,94.73,12.68]
[1644653257064,0.57496272,94.77,94.731,5.277]
[1644653257264,0.57496272,94.77,94.731,7.66066791]
[1644653259467,0.07496272,94.77,94.731,7.66066791]
[1644653260063,0.07496272,94.77,94.731,2.38366791]
[1644653261263,0.07496272,94.77,94.732,5.277]
[1644653261863,0.07496272,94.77,94.733,2.38366791]
[1644653263265,0.04415588,94.79,94.735,30.0]
[1644653263565,0.04415588,94.81,94.736,7.65966791]
[1644653263765,5.275,94.809,94.75,12.68]
[1644653263967,5.275,94.816,94.75,12.68]
[1644653264164,5.275,94.808,94.75,12.68]
[1644653264364,44.92361333,94.807,94.75,12.68]
[1644653264767,5.275,94.806,94.75,12.68]
[1644653266468,44.92361333,94.807,94.75,15.06366791]
[1644653266867,5.275,94.816,94.75,15.06366791]
[1644653268068,22.6694,94.817,94.75,15.06366791]
[1644653268969,0.04415588,94.82,94.751,5.275]
[1644653269170,0.04415588,94.83,94.751,5.275]
[1644653269370,0.04415588,94.83,94.752,2.38366791]
[1644653269569,5.274,94.829,94.753,5.274]
[1644653269774,37.80162264,94.828,94.753,5.274]
[1644653270072,37.80162264,94.828,94.754,2.38366791]
[1644653270271,24.9389,94.827,94.754,2.38366791]
[1644653270471,24.9389,94.827,94.755,5.274]
[1644653270871,24.9389,94.827,94.756,2.38366791]
[1644653271072,24.9389,94.827,94.77,12.68]
[1644653271672,24.9389,94.827,94.771,7.92450263]
[1644653272173,24.9389,94.827,94.772,2.38366791]
[1644653274177,24.9389,94.827,94.771,0.26683472]
[1644653276677,26.40212154,94.827,94.771,0.26683472]
[1644653277279,1.46322154,94.826,94.771,0.26683472]
[1644653277487,5.274,94.825,94.771,0.26683472]
[1644653277679,31.67612154,94.827,94.771,0.26683472]
[1644653277881,31.67612154,94.827,94.772,2.38366791]
[1644653278080,31.67612154,94.827,94.771,0.26683472]
[1644653278281,40.3229,94.827,94.771,0.26683472]
[1644653278481,1.46322154,94.814,94.771,0.26683472]
[1644653278681,1.46322154,94.811,94.76,0.26683472]
[1644653278881,1.46322154,94.809,94.76,0.26683472]
[1644653279082,1.46322154,94.805,94.76,0.26683472]
[1644653279381,1.46322154,94.803,94.76,0.26683472]
[1644653279580,6.73822154,94.802,94.76,0.26683472]
[1644653279781,1.46322154,94.806,94.76,0.26683472]
[1644653279990,6.73822154,94.805,94.76,0.26683472]
[1644653280182,1.46322154,94.805,94.76,0.26683472]
[1644653280382,5.275,94.804,94.76,0.26683472]
[1644653280582,6.73822154,94.804,94.76,0.26683472]
[1644653280784,1.46322154,94.806,94.76,0.26683472]
[1644653280982,1.46322154,94.803,94.76,0.26683472]
[1644653281184,1.46322154,94.8,94.76,0.26683472]
[1644653281584,1.46322154,94.802,94.76,0.26683472]
[1644653281784,1.46322154,94.802,94.75,12.68]
[1644653282489,1.46322154,94.801,94.75,12.68]
[1644653282687,1.46322154,94.802,94.75,12.68]
[1644653282888,1.46322154,94.8,94.75,12.68]
[1644653283088,1.46322154,94.805,94.75,12.68]
[1644653283489,1.46322154,94.804,94.75,12.68]
[1644653283696,1.46322154,94.805,94.75,12.68]
[1644653283888,1.46322154,94.804,94.75,12.68]
[1644653284089,1.46322154,94.803,94.75,12.68]
[1644653284488,1.46322154,94.804,94.75,12.68]
[1644653285289,1.46322154,94.803,94.751,0.26683472]
[1644653285490,22.7034,94.808,94.751,0.26683472]
[1644653285491,1.46322154,94.806,94.751,0.26683472]
[1644653285689,1.46322154,94.801,94.751,0.26683472]
[1644653285890,1.46322154,94.804,94.751,0.26683472]
[1644653286290,1.46322154,94.804,94.752,2.38366791]
[1644653286491,1.46322154,94.807,94.753,5.275]
[1644653286892,24.16662154,94.808,94.754,2.38366791]
[1644653287094,22.7034,94.808,94.755,5.275]
[1644653287293,22.7034,94.808,94.754,2.38366791]
[1644653287509,22.7034,94.808,94.756,2.38366791]
[1644653287711,22.7034,94.808,94.76,12.68]
[1644653288109,22.7034,94.808,94.76,15.06366791]
[1644653288308,22.7034,94.808,94.761,0.26683472]
[1644653289309,22.7034,94.808,94.762,2.38366791]
[1644653289911,1.46322154,94.816,94.762,2.38366791]
[1644653290211,1.46322154,94.819,94.764,1.1251053]
[1644653290409,1.46322154,94.824,94.765,5.274]
[1644653290609,47.8519658,94.826,94.78,12.68]
[1644653291110,47.8519658,94.826,94.781,5.274]
[1644653291308,1.46322154,94.828,94.781,2.65050263]
[1644653291507,0.04415588,94.84,94.781,2.65050263]
[1644653291508,1.46322154,94.829,94.782,5.274]
[1644653291707,1.46322154,94.829,94.782,7.65766791]
[1644653291908,1.46322154,94.829,94.783,2.38366791]
[1644653292310,1.46322154,94.832,94.784,5.273]
[1644653292508,1.46322154,94.832,94.784,13.183]
[1644653292713,39.59875361,94.833,94.785,2.38366791]
[1644653292909,39.59875361,94.833,94.786,5.273]
[1644653293110,1.46322154,94.833,94.786,5.273]
[1644653293311,1.46322154,94.835,94.787,2.38366791]
[1644653293711,1.46322154,94.836,94.788,5.273]
[1644653293910,1.46322154,94.836,94.8,12.68]
[1644653295111,1.46322154,94.835,94.8,12.68]
[1644653295513,1.46322154,94.837,94.8,12.68]
[1644653295714,1.46322154,94.834,94.8,12.68]
[1644653295913,1.46322154,94.833,94.8,12.68]
[1644653296119,1.46322154,94.832,94.8,12.68]
[1644653296713,114.46322154,94.831,94.8,12.68]
[1644653296913,113.0,94.831,94.8,12.68]
[1644653297213,114.46322154,94.831,94.8,12.68]
[1644653297613,113.0,94.831,94.801,0.26683472]
[1644653298013,1.46322154,94.83,94.801,0.26683472]
[1644653298215,1.46322154,94.827,94.801,0.26683472]
[1644653298419,1.46322154,94.826,94.801,0.26683472]
[1644653298615,1.46322154,94.825,94.801,0.26683472]
[1644653298816,1.46322154,94.828,94.801,0.26683472]
[1644653299015,1.46322154,94.829,94.801,0.26683472]
[1644653299216,6.73622154,94.83,94.801,0.26683472]
[1644653300019,1.46322154,94.83,94.801,0.26683472]
[1644653300624,113.0,94.831,94.802,2.38366791]
[1644653300818,1.46322154,94.837,94.802,2.38366791]
[1644653301019,6.73622154,94.84,94.802,2.38366791]
[1644653301217,5.1330153,94.84,94.802,2.38366791]
[1644653302020,5.1330153,94.84,94.8,12.68]
[1644653302519,5.1330153,94.84,94.801,2.38366791]
[1644653302719,5.1330153,94.84,94.8,12.68]
[1644653303721,47.60316837,94.839,94.8,12.68]
[1644653304323,23.2061,94.847,94.8,12.68]
[1644653304324,24.66932154,94.847,94.801,0.26683472]
[1644653304923,23.2061,94.847,94.802,2.38366791]
[1644653305325,48.46384872,94.846,94.801,0.26683472]
[1644653305924,1.46322154,94.849,94.801,0.26683472]
[1644653306124,1.46322154,94.852,94.802,2.38366791]
[1644653306326,1.46322154,94.851,94.802,2.38366791]
[1644653306525,1.46322154,94.85,94.801,5.53883472]
[1644653306725,1.46322154,94.849,94.803,0.26683472]
[1644653307027,35.2833045,94.848,94.803,0.26683472]
[1644653307625,0.00415588,94.87,94.804,73.272]
[1644653307826,2.91450754,94.906,94.849,0.54049663]
[1644653308029,0.0446753,94.88,94.85,4.702]
[1644653308227,0.0446753,94.92,94.86,12.68]
[1644653308428,0.0446753,94.95,94.86,171.17]
[1644653308628,0.0446753,94.94,94.861,7.65166791]
[1644653308828,113.0,94.933,94.861,2.38366791]
[1644653309031,24.2642,94.932,94.862,5.268]
[1644653309230,29.5322,94.932,94.86,171.17]
[1644653309829,35.36412312,94.931,94.861,0.26683472]
[1644653310029,35.36412312,94.931,94.862,5.268]
[1644653310230,35.36412312,94.931,94.862,7.65166791]
[1644653310429,35.36412312,94.931,94.863,2.38366791]
[1644653310929,113.0,94.929,94.861,0.26683472]
[1644653311129,113.0,94.929,94.862,5.268]
[1644653312131,24.5858,94.93,94.863,2.38366791]
[1644653312332,0.0446753,94.94,94.864,5.268]
[1644653312532,0.0446753,94.95,94.865,23.0473]
[1644653312732,0.0446753,94.94,94.87,174.2986]
[1644653312933,0.0446753,94.95,94.9,158.49]
[1644653313136,0.0446753,94.94,94.91,12.68]
[1644653313332,0.0446753,95.0,94.91,12.68]
[1644653313532,0.0446753,95.0,94.911,2.38366791]
[1644653313732,0.0446753,95.0,94.93,15.7959]
[1644653313934,5.265,95.023,94.94,171.17]
[1644653313935,0.0446753,95.01,94.94,171.17]
[1644653314137,0.0446753,95.01,94.95,158.49]
[1644653314334,0.0446753,95.07,94.96,12.68]
[1644653314533,5.261,95.069,94.96,12.68]
[1644653314835,44.50062006,95.068,94.961,5.261]
[1644653315033,5.261,95.067,94.96,28.4702]
[1644653315433,44.50062006,95.068,94.961,5.261]
[1644653315637,5.261,95.067,94.96,15.06366791]
[1644653315833,5.261,95.067,94.962,2.38366791]
[1644653316036,4.261,95.067,94.97,15.7919]
[1644653316236,4.261,95.067,94.98,12.68]
[1644653316436,4.261,95.067,94.981,5.261]
[1644653316639,4.261,95.067,94.98,12.68]
[1644653317138,0.0046753,95.07,94.981,7.64466791]
[1644653317437,5.261,95.164,94.981,7.64466791]
[1644653317438,113.0,95.108,95.04,158.49]
[1644653317640,5.257,95.183,95.05,12.68]
[1644653317837,2.32779465,95.189,95.051,4.256]
[1644653318040,173.0732,95.225,95.05,12.68]
[1644653318041,5.256,95.182,95.05,12.68]
[1644653318241,48.82575825,95.188,95.052,3.30640352]
[1644653318439,48.2812,95.187,95.052,3.30640352]
[1644653318641,5.256,95.186,95.052,5.69007143]
[1644653318839,5.256,95.186,95.052,2.38366791]
[1644653319040,5.256,95.186,95.05,12.68]
[1644653319041,20.57526234,95.186,95.05,12.68]
[1644653319240,11.13050166,95.185,95.053,0.26683472]
[1644653319441,5.256,95.184,95.053,0.26683472]
[1644653320243,2.32779465,95.183,95.053,0.26683472]
[1644653320442,5.256,95.182,95.053,0.26683472]
[1644653320645,20.57526234,95.182,95.053,0.26683472]
[1644653320847,17.6504258,95.181,95.053,0.26683472]
[1644653321043,17.6504258,95.181,95.015,2.38366791]
[1644653321044,0.48,95.171,95.03,12.68]
[1644653321271,113.0,95.142,95.02,12.68]
[1644653321472,53.2582,95.141,95.02,12.68]
[1644653321872,39.36534157,95.14,95.02,12.68]
[1644653322071,39.36534157,95.14,94.983,5.258]
[1644653322072,5.258,95.139,94.983,5.258]
[1644653322274,22.9084258,95.139,94.99,12.68]
[1644653322572,2.33116346,95.138,94.99,12.68]
[1644653322774,5.259,95.137,94.991,5.259]
[1644653322973,5.259,95.137,94.992,4.12701244]
[1644653323174,5.259,95.139,95.0,15.7856]
[1644653323376,0.04467936,95.13,95.011,0.56777501]
[1644653323573,0.04467936,95.13,95.012,5.259]
[1644653323772,5.259,95.129,95.011,0.56777501]
[1644653323973,24.3657,95.128,95.013,19.44148605]
[1644653324175,24.3657,95.128,95.014,5.259]
[1644653324373,5.259,95.127,95.014,7.64266791]
[1644653324578,5.259,95.127,95.02,15.7819]
[1644653324773,24.3657,95.128,95.031,4.12701244]
[1644653324975,24.3657,95.128,95.032,5.258]
[1644653325173,24.3657,95.128,95.032,7.64166791]
[1644653325572,24.3657,95.128,95.033,2.38366791]
[1644653325775,24.3657,95.128,95.04,15.78]
[1644653326076,24.3657,95.128,95.02,12.68]
[1644653326077,7.58916346,95.127,95.02,12.68]
[1644653326273,7.58916346,95.127,95.031,5.258]
[1644653326475,0.04467936,95.12,95.021,5.259]
[1644653326874,5.258,95.127,95.021,5.259]
[1644653326875,4.80267936,95.127,95.021,5.259]
[1644653327276,4.80267936,95.127,95.022,2.38366791]
[1644653327481,4.80267936,95.127,95.023,5.259]
[1644653327676,24.3657,95.128,95.021,5.259]
[1644653327878,24.3657,95.128,95.024,5.259]
[1644653328077,24.3657,95.128,95.022,2.38366791]
[1644653328477,39.36534157,95.14,95.03,15.781]
[1644653328679,39.36534157,95.14,95.04,12.68]
[1644653329078,22.6564,95.164,95.041,2.38366791]
[1644653329278,22.6564,95.164,95.041,24.69948605]
[1644653329578,5.258,95.167,95.06,15.7754]
[1644653329779,5.257,95.189,95.07,12.68]
[1644653329978,53.5841,95.219,95.071,5.255]
[1644653330180,46.98854412,95.218,95.072,4.1593269]
[1644653330379,46.98854412,95.218,95.073,5.255]
[1644653330577,46.98854412,95.218,95.09,15.7696]
[1644653330778,46.98854412,95.218,95.1,12.68]
[1644653330979,46.98854412,95.218,95.11,12.68]
[1644653331181,46.98854412,95.218,95.12,12.68]
[1644653331379,5.253,95.217,95.122,3.93653055]
[1644653331583,5.253,95.217,95.123,5.253]
[1644653331980,5.253,95.217,95.123,2.38366791]
[1644653332179,5.253,95.217,95.13,15.7643]
[1644653332379,5.253,95.217,95.13,12.68]
[1644653332380,0.04474454,95.21,95.13,12.68]
[1644653332579,5.253,95.209,95.11,12.68]
[1644653332779,5.253,95.209,95.1,17.933]
[1644653332980,5.253,95.209,95.102,5.253]
[1644653333179,5.253,95.209,95.101,7.63666791]
[1644653333579,5.253,95.209,95.11,15.768]
[1644653333782,0.04474454,95.21,95.12,12.68]
[1644653335181,0.04474454,95.21,95.121,2.38366791]
[1644653335381,0.04474454,95.21,95.122,5.253]
[1644653335582,0.04474454,95.21,95.13,15.7649]
[1644653335784,0.04474454,95.21,95.14,12.68]
[1644653336085,46.98854412,95.218,95.141,5.253]
[1644653336482,46.98854412,95.218,95.142,2.38366791]
[1644653336684,5.253,95.217,95.143,5.253]
[1644653337084,5.253,95.217,95.141,5.253]
[1644653337284,46.98854412,95.218,95.141,5.253]
[1644653338087,46.98854412,95.218,95.142,2.38366791]
[1644653338286,46.98854412,95.218,95.14,28.4433]
[1644653338287,5.253,95.217,95.14,28.4433]
[1644653338687,5.253,95.217,95.14,12.68]
[1644653340714,2.34125473,95.216,95.14,12.68]
[1644653340915,113.0,95.214,95.12,12.68]
[1644653341114,5.253,95.213,95.12,12.68]
[1644653341314,7.59425473,95.213,95.1,12.68]
[1644653341518,0.04474454,95.2,95.1,12.68]
[1644653341715,0.04474454,95.2,95.101,5.253]
[1644653341916,7.5942879,95.199,95.1,12.68]
[1644653342115,0.04474454,95.19,95.1,12.68]
[1644653342316,5.255,95.189,95.1,12.68]
[1644653342615,7.5962879,95.189,95.1,12.68]
[1644653342817,0.04474454,95.18,95.07,12.68]
[1644653343115,0.04474454,95.18,95.01,158.49]
[1644653343116,113.0,95.177,95.06,12.68]
[1644653343315,0.04474454,95.17,95.062,5.256]
[1644653343516,5.256,95.169,95.062,5.256]
[1644653343716,0.04474454,95.16,95.062,5.256]
[1644653344317,7.5982879,95.159,95.062,5.256]
[1644653344518,7.5982879,95.159,95.06,12.68]
[1644653344719,2.3412879,95.158,95.06,12.68]
[1644653344920,5.257,95.157,95.06,12.68]
[1644653345127,39.71778532,95.156,95.06,12.68]
[1644653345326,5.257,95.155,95.06,12.68]
[1644653345519,7.5982879,95.155,95.06,12.68]
[1644653345919,2.3412879,95.154,95.06,12.68]
[1644653346121,5.257,95.153,95.061,5.257]
[1644653346522,2.3412879,95.152,95.061,5.257]
[1644653346725,113.0,95.14,95.061,5.257]
[1644653346920,113.0,95.14,95.062,2.38366791]
[1644653346921,36.4611215,95.139,95.062,2.38366791]
[1644653347122,36.4611215,95.139,95.063,5.257]
[1644653347520,36.4611215,95.139,95.061,5.257]
[1644653347722,5.257,95.138,95.06,12.68]
[1644653348222,5.257,95.138,95.051,2.38366791]
[1644653348422,0.04474454,95.13,95.052,5.257]
[1644653348625,5.258,95.129,95.052,5.257]
[1644653348823,0.04474454,95.13,95.06,12.68]
[1644653349023,5.257,95.138,95.06,12.68]
[1644653349228,5.257,95.138,95.052,5.257]
[1644653349524,2.3412879,95.137,95.052,5.257]
[1644653349723,0.04474454,95.13,95.052,5.257]
[1644653350523,36.4611215,95.139,95.06,12.68]
[1644653350726,0.04474454,95.13,95.06,12.68]
[1644653351124,36.4611215,95.139,95.06,12.68]
[1644653352326,5.257,95.138,95.06,12.68]
[1644653354332,36.4611215,95.139,95.06,12.68]
[1644653355629,36.4611215,95.139,95.061,5.257]
[1644653355830,36.4611215,95.139,95.06,12.68]
[1644653357131,36.4611215,95.139,95.061,5.257]
[1644653357330,36.4611215,95.139,95.061,7.64066791]
[1644653357531,36.4611215,95.139,95.062,2.38366791]
[1644653357830,36.4611215,95.139,95.063,5.257]
[1644653358232,36.4611215,95.139,95.07,15.7753]
[1644653358437,36.4611215,95.139,95.08,12.68]
[1644653358632,0.04474454,95.13,95.061,5.257]
[1644653358834,5.257,95.138,95.061,5.257]
[1644653360233,36.4611215,95.139,95.061,5.257]
[1644653360833,5.257,95.138,95.06,28.4571]
[1644653361033,36.4611215,95.139,95.061,5.257]
[1644653361235,5.257,95.138,95.061,5.257]
[1644653361634,16.917,95.138,95.061,5.257]
[1644653361833,2.34036554,95.137,95.04,12.68]
[1644653362036,0.04474454,95.13,95.022,5.258]
[1644653362335,5.258,95.129,95.026,5.258]
[1644653362536,7.59836554,95.129,95.01,12.68]
[1644653362735,2.34036554,95.128,95.01,12.68]
[1644653363034,5.259,95.127,95.011,5.259]
[1644653363436,5.259,95.127,95.012,2.38366791]
[1644653363634,5.259,95.129,95.02,15.7833]
[1644653363834,5.259,95.126,95.03,12.68]
[1644653364034,5.259,95.128,95.03,12.68]
[1644653364234,5.258,95.129,95.031,7.64166791]
[1644653364435,5.258,95.127,95.031,7.64166791]
[1644653364639,0.04474454,95.13,95.031,7.64166791]
[1644653364935,0.04474454,95.13,95.05,15.7783]
[1644653365136,0.04474454,95.13,95.06,12.68]
[1644653365336,36.4611215,95.139,95.06,12.68]
[1644653365337,36.4611215,95.139,95.061,5.257]
[1644653365536,36.4611215,95.139,95.062,4.05100421]
[1644653365733,36.4611215,95.139,95.063,5.257]
[1644653365938,36.4611215,95.139,95.08,15.7719]
[1644653366157,5.257,95.138,95.09,12.68]
[1644653366536,5.257,95.138,95.048,5.256]
[1644653366734,5.257,95.138,95.042,5.257]
[1644653366934,0.04474454,95.13,95.04,12.68]
[1644653367133,0.04474454,95.13,95.041,5.258]
[1644653367134,5.258,95.129,95.041,5.258]
[1644653367338,0.04474454,95.13,95.043,2.38366791]
[1644653367535,5.258,95.129,95.043,2.38366791]
[1644653367736,5.258,95.129,95.044,5.258]
[1644653367935,0.04474454,95.13,95.044,5.258]
[1644653368136,5.258,95.129,95.045,2.38366791]
[1644653368335,0.04474454,95.13,95.06,12.68]
[1644653368537,5.258,95.136,95.06,12.68]
[1644653368735,48.8127,95.137,95.061,5.257]
[1644653368935,5.257,95.135,95.061,5.257]
[1644653369137,48.8127,95.137,95.061,5.257]
[1644653369538,5.257,95.136,95.061,5.257]
[1644653369941,5.257,95.136,95.06,12.68]
[1644653370238,48.8127,95.137,95.06,12.68]
[1644653370540,5.257,95.135,95.06,12.68]
[1644653370839,5.257,95.136,95.06,12.68]
[1644653371038,5.257,95.136,95.04,12.68]
[1644653371242,0.04474454,95.13,95.04,12.68]
[1644653371537,5.258,95.129,95.041,5.258]
[1644653371738,16.338,95.129,95.041,5.258]
[1644653373659,16.338,95.129,95.04,12.68]
[1644653374940,16.338,95.129,95.021,5.258]
[1644653375145,2.97829904,95.128,95.021,5.258]
[1644653375342,5.259,95.127,95.022,29.85685298]
[1644653375742,7.59936554,95.127,95.022,29.85685298]
[1644653375943,2.97829904,95.126,95.022,29.85685298]
[1644653376242,51.07946966,95.124,95.0,12.68]
[1644653376442,0.04474454,95.11,95.023,2.38366791]
[1644653376643,43.73603933,95.108,95.024,5.259]
[1644653377044,43.73603933,95.108,95.025,32.24282713]
[1644653377444,43.73603933,95.108,95.026,37.50182713]
[1644653377647,43.73603933,95.108,95.03,12.68]
[1644653378045,43.73603933,95.108,95.031,7.64266791]
[1644653378245,43.73603933,95.108,95.031,37.50182713]
[1644653378446,43.73603933,95.108,95.032,2.38366791]
[1644653378645,43.73603933,95.108,95.033,5.259]
[1644653379047,43.73603933,95.108,95.034,32.24282713]
[1644653379448,5.259,95.107,95.035,29.85915922]
[1644653379648,43.73603933,95.108,95.035,29.85915922]
[1644653379848,5.259,95.107,95.035,29.85915922]
[1644653380251,5.259,95.107,95.034,2.38366791]
[1644653380449,43.73603933,95.108,95.035,5.259]
[1644653380849,43.73603933,95.108,95.031,5.259]
[1644653381049,51.43603933,95.108,95.031,5.259]
[1644653381347,5.259,95.107,95.03,12.68]
[1644653381749,5.259,95.107,95.003,5.259]
[1644653381950,47.3275,95.106,95.0,12.68]
[1644653382249,5.26,95.105,95.001,29.86154059]
[1644653382648,5.26,95.105,95.002,5.26]
[1644653383149,5.26,95.105,95.003,29.86154059]
[1644653383551,5.26,95.105,95.002,29.86154059]
[1644653383851,5.26,95.105,95.001,29.86154059]
[1644653384450,5.26,95.105,95.001,2.38366791]
[1644653384652,47.3275,95.106,95.001,2.38366791]
[1644653384854,5.26,95.105,95.002,29.86154059]
[1644653385052,5.26,95.105,95.002,35.12154059]
[1644653385254,5.26,95.105,95.003,2.38366791]
[1644653385455,5.26,95.105,95.004,5.26]
[1644653385654,5.26,95.105,95.004,35.12154059]
[1644653385851,5.26,95.105,95.005,2.38366791]
[1644653386051,5.26,95.105,95.006,5.26]
[1644653386251,5.26,95.105,95.02,12.68]
[1644653386454,5.26,95.105,95.021,5.259]
[1644653386652,0.04474454,95.12,95.021,18.94266791]
[1644653386853,0.04474454,95.15,95.022,95.42518969]
[1644653387057,0.04474454,95.11,95.023,5.258]
[1644653387254,9.05,95.11,95.023,37.5032085]
[1644653387455,9.05,95.11,95.03,15.7814]
[1644653387653,9.05,95.11,95.04,12.68]
[1644653387854,5.259,95.109,95.024,29.86154059]
[1644653388057,54.1954,95.109,95.02,12.68]
[1644653388254,48.9364,95.109,95.021,5.259]
[1644653388453,45.60315551,95.107,95.021,29.85727205]
[1644653388676,5.259,95.106,95.021,29.85727205]
[1644653392079,45.60315551,95.107,95.022,8.78431981]
[1644653392282,45.60315551,95.107,95.022,28.15358364]
[1644653392481,45.60315551,95.107,95.023,32.24093996]
[1644653392681,45.60315551,95.107,95.024,5.259]
[1644653392883,45.60315551,95.107,95.024,54.48553588]
[1644653393085,45.60315551,95.107,95.025,19.36926383]
[1644653393280,5.259,95.129,95.04,12.68]
[1644653393483,0.04474454,95.13,95.041,5.258]
[1644653393681,0.04474454,95.15,95.042,24.2773]
[1644653393884,0.04474454,95.13,95.043,5.257]
[1644653394086,0.04474454,95.14,95.043,35.11427205]
[1644653394285,0.04474454,95.13,95.043,35.11427205]
[1644653394484,5.49411464,95.141,95.044,29.85727205]
[1644653394684,0.04474454,95.13,95.045,5.258]
[1644653394885,0.04474454,95.13,95.029,2.38366791]
[1644653394886,10.03474454,95.13,95.029,2.38366791]
[1644653395083,5.258,95.129,95.009,2.38366791]
[1644653395282,0.04474454,95.12,95.009,2.38366791]
[1644653395482,5.259,95.119,95.01,38.74748036]
[1644653395684,24.2359,95.118,95.01,38.74748036]
[1644653395882,5.259,95.117,95.011,32.24332194]
[1644653396183,5.259,95.117,95.012,37.50232194]
[1644653396484,5.259,95.117,95.013,2.38366791]
[1644653396685,5.259,95.117,95.014,5.259]
[1644653396885,5.259,95.117,95.013,32.24332194]
[1644653397186,5.259,95.117,95.015,29.85965403]
[1644653397383,5.259,95.117,95.014,29.85965403]
[1644653397785,5.259,95.117,95.012,29.85965403]
[1644653397984,5.259,95.117,95.013,5.259]
[1644653398205,5.259,95.117,95.014,29.85965403]
[1644653398586,5.259,95.117,95.015,5.259]
[1644653398789,5.259,95.117,95.012,29.85965403]
[1644653399184,5.259,95.117,95.004,29.85965403]
[1644653399585,5.31630881,95.116,95.004,29.85965403]
[1644653399787,8.23494327,95.115,95.004,29.85965403]
[1644653400086,12.68,95.1,94.991,29.85965403]
[1644653400286,50.9468,95.099,95.005,29.85965403]
[1644653400489,93.34496068,95.099,95.005,29.85965403]
[1644653400690,93.34496068,95.099,94.981,29.85965403]
[1644653401692,93.34496068,95.099,94.982,2.38366791]
[1644653402091,93.34496068,95.099,94.983,23.2895]
[1644653402290,21.99829996,95.098,94.983,53.14915403]
[1644653402490,5.26,95.097,94.984,2.38366791]
[1644653402691,5.26,95.097,94.984,29.85965403]
[1644653402692,2.97653696,95.096,94.984,29.85965403]
[1644653402893,8.17450754,95.095,94.984,29.85965403]
[1644653403093,8.17450754,95.095,94.96,12.68]
[1644653403094,12.68,95.09,94.961,29.85965403]
[1644653403295,5.261,95.089,94.985,2.38366791]
[1644653403493,5.261,95.089,94.986,29.85965403]
[1644653404095,5.261,95.089,94.987,2.38366791]
[1644653404293,5.261,95.089,94.988,29.85965403]
[1644653404494,5.261,95.089,94.988,34.16641784]
[1644653404693,5.261,95.098,94.989,2.38366791]
[1644653404893,5.261,95.098,94.989,32.24332194]
[1644653405096,88.08496068,95.099,94.989,32.24332194]
[1644653405295,5.26,95.098,94.99,32.24332194]
[1644653405696,5.26,95.098,94.991,32.24332194]
[1644653406099,88.08496068,95.099,94.992,32.24332194]
[1644653406503,88.08496068,95.099,94.993,32.24332194]
[1644653406703,5.26,95.098,94.993,32.24332194]
[1644653406898,5.26,95.098,94.994,29.85965403]
[1644653407299,5.26,95.098,94.994,32.24332194]
[1644653407498,5.26,95.098,94.995,2.38366791]
[1644653407698,5.26,95.098,95.0,12.68]
[1644653407898,5.26,95.123,95.001,2.96954701]
[1644653408100,0.04504047,95.14,95.002,47.6876]
[1644653408299,5.258,95.149,95.008,2.99488476]
[1644653408505,0.04504047,95.14,95.02,12.68]
[1644653408800,44.62288267,95.147,95.022,0.98564116]
[1644653409003,0.04504047,95.14,95.04,15.7778]
[1644653409200,0.04504047,95.14,95.05,12.68]
[1644653409605,5.257,95.139,95.05,12.68]
[1644653409802,13.817,95.139,95.051,29.85965403]
[1644653410402,2.97393664,95.138,95.051,29.85965403]
[1644653410602,5.257,95.137,95.025,29.85965403]
[1644653410804,32.59726554,95.137,95.025,29.85965403]
[1644653411004,2.91450754,95.13,95.021,29.85965403]
[1644653411202,12.68,95.12,95.021,29.85965403]
[1644653411402,12.68,95.12,94.991,5.259]
[1644653411403,41.18934695,95.119,94.991,35.11865403]